Cogmind - Beta 17 @@@ ROGUE MODE // 2026.07.12 @ 02:03:35 Player: Artackni Result: Destroyed by EC-08T(R) with Subdweller Machine Gun Performance ------------- Evolutions (0) 0 Regions Visited (2) 400 Robots Destroyed (84) 420 Value Destroyed (2054) 2054 Prototype IDs (18) 360 Alien Tech Used (0) 0 Bonus (8097) 8097 TOTAL SCORE: 11331 Bonus ------- Follower Combat Kills 25 Prayed to X0-1V1 5000 Major X0-1V1 Interference 3100 Friendly Fire -28 Cogmind --------- Core Integrity 0/160 Matter 550/900 Energy 1400/1400 System Corruption 2% Temperature Cool (0) Movement Rolling (140) Ox4 Location -10/Subcaves Parts ------- > --- POWER (2) -------- Subdweller Power Source (fused) > --- PROPULSION (1) --- Wheel (fused) > --- UTILITY (4) ------ High-capacity Storage Unit EM Disruption Field (fused) Self-contained Transmogrifier X0-1V1's Piety Tracker > --- WEAPON (1) ------- Heavy Mace (fused) > --- INVENTORY (20) --- Subdweller Power Source Light Treads Light Treads Cargo Legs Compact Wheel Light Armor Plating Heavy Armor Plating Scrap Shield Hacking Suite Cobbler Unit Small Laser Rocket Launcher Subdweller Shrapnel Launcher Multitool Heavy Hammer Peak State ------------ > --- POWER ------------ Reinforced Ion Engine Subdweller Power Source > --- PROPULSION ------- Wheel > --- UTILITY ---------- High-capacity Storage Unit Advanced Sensor Array Self-contained Transmogrifier X0-1V1's Piety Tracker > --- WEAPON ----------- Heavy Mace > --- INVENTORY -------- Subdweller Power Source Light Treads Light Treads Cargo Legs Compact Wheel Light Armor Plating Heavy Armor Plating Scrap Shield Hacking Suite Cobbler Unit Small Laser Rocket Launcher Subdweller Shrapnel Launcher Multitool Heavy Hammer [Rating: 40] Favorites ----------- Power Subdweller Power Source Engine Subdweller Power Source Power Core Light Nuclear Core Propulsion Wheel Wheel Wheel Utility High-capacity Storage Unit Device X0-1V1's Piety Tracker Storage High-capacity Storage Unit Protection Makeshift Light Armor Plating Weapon Improved Assault Rifle Energy Gun Subdweller Laser Ballistic Gun Improved Assault Rifle Ballistic Cannon Battle Cannon Launcher Shock Bomb Launcher Impact Weapon Maul Build | -11 -10 -10 ------- Run | Yrd Mat Sub Slots Evolved . | . . . Power . | . . . Propulsion . | . . . Utility . | . . . Weapon . | . . . Parts Attached 41 | 5 9 27 Power 8 | 1 1 6 Engine 7 | 1 1 5 Core 1 | . . 1 Reactor . | . . . Propulsion 6 | 2 1 3 Treads . | . . . Leg . | . . . Wheel 6 | 2 1 3 Hover . | . . . Flight . | . . . Utility 11 | . 5 6 Device 7 | . 3 4 Storage 2 | . 2 . Processor . | . . . Hackware . | . . . Protection 2 | . . 2 Artifact . | . . . Weapon 16 | 2 2 12 Energy Gun 8 | 1 2 5 Energy Cannon . | . . . Ballistic Gun 3 | 1 . 2 Ballistic Cannon 1 | . . 1 Launcher 3 | . . 3 Special Weapon . | . . . Impact Weapon 1 | . . 1 Slashing Weapon . | . . . Piercing Weapon . | . . . Special Melee Weapon . | . . . Unidentified Prototypes 2 | . 1 1 Parts Lost 19 | . 3 16 Power 6 | . 1 5 Propulsion 4 | . 1 3 Utility 3 | . . 3 Weapon 6 | . 1 5 Highest Loss Streak 4 | . 1 4 To Critical Strikes . | . . . Average Backups 15 | 1 11 16 Power 1 | . 1 1 Propulsion 4 | . 5 4 Utility 3 | . 2 4 Weapon 4 | . 2 5 Tool/Special . | . . . Unused Backups 14 | . . 14 Power . | . . . Propulsion 6 | . . 6 Utility 4 | . . 4 Weapon 3 | . . 3 Tool/Special 1 | . . 1 Average Slot Usage (%) 94 | . 97 93 Engine 18 | . 13 18 Core 1 | . . 1 Wheel 15 | . 27 13 Device 13 | . 12 13 Storage 11 | . 13 11 Protection 6 | . . 7 Energy Gun 12 | . 13 11 Ballistic Gun 6 | . 13 5 Ballistic Cannon 2 | . . 3 Launcher 1 | . . 2 Impact Weapon 1 | . . 1 Peak Build Rating 40 | 5 25 40 Average Rating 28 | 4 9 30 On Entrance 10 | . 5 25 Avg Prop Armor Cover (%) . | . . . Naked Turns . | . . . Heaviest Build 72 | 7 50 72 Greatest Support 26 | 26 26 26 Greatest Overweight (x) 18 | . 1 18 Average Overweight (x) 4 | . . 4 Largest Inventory Capacity 20 | 5 20 20 Average Capacity 19 | 5 19 20 Most Carried 20 | 5 18 20 Average Carried 17 | 1 11 18 Final Capacity 20 | 5 20 20 Final Carried 19 | 5 17 19 Transmogrified Parts 3 | . . 3 Integrity Recovered 13 | . . 13 Class Distribution -------------------- 74% | Mutant 9% | Tank 7% | Scavenger-Mutant 5% | Gunner Dominant Class ---------------- Mutant | -10/Materials Mutant | -10/Subcaves Resources | -11 -10 -10 ----------- Run | Yrd Mat Sub Matter Collected 2318 | 186 331 1801 Remotely . | . . . Salvage Created 2417 | . 686 1731 Parts 170 | . 54 116 Haulers Intercepted 2 | . 2 . Recyclers Shooed 3 | . 3 . Parts Field Recycled . | . . . Retrieved Matter . | . . . Parts Self-Destructed 70 | . . 70 Prevented 7 | . . 7 Parts Restored . | . . . Kills | -11 -10 -10 ------- Run | Yrd Mat Sub Combat Hostiles Destroyed 71 | . 12 59 Guns 40 | . 12 28 Cannons 2 | . . 2 AOE 27 | . . 27 Classes Destroyed 11 | . 7 4 Worker 4 | . 4 . Builder 1 | . 1 . Hauler 2 | . 2 . Recycler 2 | . 2 . Operator 1 | . 1 . Turret 2 | . . 2 Swarmer 27 | . 6 21 Grunt 31 | . 6 25 Sentry 1 | . . 1 Subdweller 12 | . . 12 Mutant 1 | . . 1 Best Kill Streak 7 | . 7 5 Combat Bots Only 5 | . 3 5 Max Kills in Single Turn 5 | . 2 5 Gunslinging 2 | . . 2 Exploded 5 | . . 5 Melee . | . . . Uniques/NPCs Destroyed . | . . . Combat | -11 -10 -10 -------- Run | Yrd Mat Sub Hostile Shots Fired 230 | . 38 192 Missed 75 | . 10 65 Hits 155 | . 28 127 Projectile 155 | . 28 127 Critical Strikes 3 | . 1 2 Damage Taken 2188 | . 282 1906 Core 420 | . 61 359 Absorbed by Shields . | . . . Core Remaining (%) 100 | 100 . . Volleys Fired 216 | . 50 166 Largest 5 | . 2 5 Hottest 209 | . 85 209 Shots Fired 401 | . 100 301 Gun 331 | . 100 231 Cannon 25 | . . 25 Launcher 45 | . . 45 Special . | . . . Kinetic 181 | . 50 131 Thermal 136 | . 50 86 Explosive 5 | . . 5 Electromagnetic 79 | . . 79 Robot Hit Streak 18 | . 9 18 Robot Miss Streak 4 | . 4 3 Penetration Max . | . . . Secondary Targets 9 | . 1 8 Max Gunslinging Chain 2 | . 1 2 Shots Hit Robots 196 | . 59 137 Core Hits 125 | . 32 93 Critical Kills 1 | . . 1 Critical Parts Destroyed 1 | . . 1 Critical Strikes 11 | . 3 8 Burn 4 | . 3 1 Destroy 1 | . . 1 Blast 2 | . . 2 Corrupt 3 | . . 3 Smash 1 | . . 1 Melee Attacks 20 | . . 20 Impact 20 | . . 20 Slashing . | . . . Piercing . | . . . Sneak Attacks . | . . . Combat Hostiles . | . . . Follow-up Attacks . | . . . Damage Inflicted 5008 | . 763 4245 Guns 2439 | . 763 1676 Cannons 267 | . . 267 Explosions 2253 | . . 2253 Melee 49 | . . 49 Ramming . | . . . Kinetic 2280 | . 350 1930 Thermal 1242 | . 413 829 Explosive 419 | . . 419 Electromagnetic 1018 | . . 1018 Impact 49 | . . 49 Slashing . | . . . Piercing . | . . . Highest Corruption 15 | . 8 15 Average Corruption 2 | . 8 2 Corruption Purged . | . . . Corruption Blocked . | . . . Effects 15 | . . 15 Message Errors 2 | . . 2 Matter Fused 4 | . . 4 Heat Flow Errors 3 | . . 3 Energy Discharges 2 | . . 2 Data Loss (major) 2 | . . 2 Misfires 2 | . . 2 Overload Shots . | . . . Overflow Damage 35 | . . 35 Projectiles . | . . . Explosions 7 | . . 7 Melee 28 | . . 28 Knockbacks 3 | . . 3 Impact 1 | . . 1 Kinetic 2 | . . 2 Secondary . | . . . Self-Inflicted Damage 97 | . . 97 Shots 5 | . . 5 Rammed . | . . . Targets Rammed . | . . . Kicked . | . . . Crushed . | . . . Highest Temperature 255 | . 12 255 Average Temperature 84 | . 5 92 Received Heat Transfer 657 | . 114 543 Siege Activations . | . . . Martial Activations . | . . . Shielding Activations . | . . . Robots Disrupted . | . . . Combat Hostiles . | . . . Robots Corrupted 2 | . . 2 Combat Hostiles 2 | . . 2 Parts Fried 1 | . . 1 Impact Corruptions 1 | . . 1 Robots Melted . | . . . Combat Hostiles . | . . . Parts Melted 3 | . 1 2 Heat Transferred 2786 | . 1308 1478 Parts Sabotaged . | . . . Parts Stolen . | . . . Parts Stripped . | . . . Power Chain Reactions 5 | . . 5 Alert | -11 -10 -10 ------- Run | Yrd Mat Sub Maximum Alert Level . | . . . Low Security (%) 100 | 100 100 . Level 1 . | . . . Level 2 . | . . . Level 3 . | . . . Level 4 . | . . . Level 5 . | . . . High Security . | . . . Max Security . | . . . Peak Influence 152 | . 152 . Initial . | . . . Average 93 | . 100 . Influence Increases 1799 | . 432 1367 Destroy 0b10 Robot/C 1220 | . 240 980 Destroy 0b10 Robot/NC 50 | . 50 . Destroy Leader 64 | . 54 10 Allied During Kill 2 | . . 2 Successful Hack 8 | . 8 . Select Force Hacks 50 | . 50 . Partial Spotted 15 | . 15 . Lose Combat Pursuer 390 | . 15 375 Influence Decreases 1270 | . 288 982 Entered New Map 70 | . . 70 Time Decay 990 | . 258 732 Lost Part 190 | . 30 160 Lost Ally 20 | . . 20 Squads Dispatched 2 | . 2 . Investigation 1 | . 1 . Extermination . | . . . Reinforcement 1 | . 1 . Assault . | . . . Garrison . | . . . Intercept . | . . . Searches Triggered . | . . . Construction Impeded . | . . . Haulers Reinforced . | . . . Active Scanning Responses . | . . . Cargo Convoy Interrupts . | . . . Stealth | -11 -10 -10 --------- Run | Yrd Mat Sub Distress Signals 1 | . 1 . Communications Jammed . | . . . Distress Signals . | . . . Times Spotted 96 | . 19 77 Peak Tracking Total 6 | . 4 6 Tactical Retreats 7 | . 1 6 Traps | -11 -10 -10 ------- Run | Yrd Mat Sub Traps Triggered 1 | . . 1 Indirectly . | . . . Trap Hack Attempts . | . . . Triggered . | . . . Disarmed . | . . . Reprogrammed . | . . . Reused . | . . . Traps Extracted . | . . . Installed . | . . . Triggered . | . . . Most Traps Carried 3 | . . 3 Machines | -11 -10 -10 ---------- Run | Yrd Mat Sub Machines Disabled 4 | . . 4 Max in Single Turn 2 | . . 2 Machines Repaired . | . . . Machines Dismantled . | . . . Machines Sabotaged 1 | . 1 . Overloaded Fab Kills . | . . . Hacking | -11 -10 -10 --------- Run | Yrd Mat Sub Machines Accessed 5 | . 4 1 Terminals 4 | . 4 . Fabricators . | . . . Repair Stations . | . . . Recycling Units . | . . . Scanalyzers . | . . . Garrison Access . | . . . Total Hacks 12 | . 11 1 Successful 6 | . 5 1 Failed 6 | . 6 . Catastrophic . | . . . Database Lockouts . | . . . Manual 13 | . 13 . Terminals 11 | . 11 . Fabricators . | . . . Repair Stations . | . . . Recycling Units . | . . . Scanalyzers . | . . . Garrison Access . | . . . Terminal Hacks 1 | . . 1 Proto ID Catalog 1 | . . 1 Fabricator Hacks . | . . . Repair Station Hacks . | . . . Recycling Unit Hacks . | . . . Scanalyzer . | . . . Garrison Access Hacks . | . . . Unauthorized Hacks 5 | . 5 . Terminals 5 | . 5 . Operators 1 | . 1 . Skim 3 | . 3 . Sabotage 1 | . 1 . Fabricators . | . . . Repair Stations . | . . . Recycling Units . | . . . Scanalyzers . | . . . Garrison Access . | . . . Data Cores Recovered . | . . . Used . | . . . Hacking Detections 1 | . 1 . Full Trace Events . | . . . Feedback Events . | . . . Feedback Blocked . | . . . Robot Schematics Acquired . | . . . Robots Built . | . . . Authchips . | . . . Time . | . . . Total Robot Build Rating . | . . . Part Schematics Acquired . | . . . Parts Built . | . . . Authchips . | . . . Time . | . . . Total Part Build Rating . | . . . Part Studies Acquired . | . . . Parts Repaired . | . . . Time . | . . . Parts Recycled . | . . . Recycled Matter . | . . . Retrieved Matter . | . . . Retrieved Components . | . . . Parts Scanalyzed . | . . . Part Schematics Acquired . | . . . Parts Damaged . | . . . Bothacking | -11 -10 -10 ------------ Run | Yrd Mat Sub Used RIF Installer . | . . . Robots Hacked . | . . . Non-combat . | . . . Combat . | . . . Robot Hacks Applied . | . . . Relay Couplers Released . | . . . Fabnet Peak Effective % . | . . . Robots Rewired . | . . . Allies Hacked . | . . . Hacks Repelled . | . . . Allies | -11 -10 -10 -------- Run | Yrd Mat Sub Total Allies 3 | . . 3 Largest Group 2 | . . 2 Highest-Rated Group 16 | . . 16 Highest-Rated Ally 15 | . . 15 Total Orders . | . . . Ally Attacks 22 | . . 22 Total Damage 190 | . . 190 Kills 1 | . . 1 Allies Corrupted . | . . . Allies Melted . | . . . X0-1V1 Amusement Gains 41 | . 7 34 Good Acts 67 | . 9 58 Bad Acts 72 | . 2 70 Intel | -11 -10 -10 ------- Run | Yrd Mat Sub Active Infowar (turns) 45 | . . 45 Sensors 45 | . . 45 Robot Analysis Total . | . . . Derelict Logs Recovered 1 | . . 1 Drone Launches . | . . . Drone Recoveries . | . . . Exploration | -11 -10 -10 ------------- Run | Yrd Mat Sub Turns Passed 5631 | 52 640 4939 Spaces Moved 3281 | 45 430 2806 Core 3 | 2 . 1 Treads . | . . . Legs . | . . . Wheels 3278 | 43 430 2805 Hover . | . . . Flight . | . . . Fastest Speed 50 | 50 90 105 Average Speed 147 | 87 103 155 Slowest Speed 950 | 90 105 950 Overloaded Moves . | . . . Propulsion Burnouts . | . . . Robots Hopped . | . . . Potential Cave-ins 4 | . . 4 Cave-ins Triggered 1 | . . 1 Exploration Rate (%) 52 | 3 68 87 Regions Visited 2 Branch Regions 1 Pre-discovered Areas . | . . . Known Exits Taken . | . . . Unknown Exits Taken 2 | 1 1 . Scrap Searched 1 | . . 1 Spaces Dug 14 | . . 14 Terrain Destroyed 138 | . . 138 Melee 10 | . . 10 Projectile 9 | . . 9 AOE 119 | . . 119 Terrain Rammed . | . . . Walls Destroyed . | . . . Machines Disabled . | . . . Actions | -11 -10 -10 --------- Run | Yrd Mat Sub Total 3668 | 54 522 3092 Wait 28 | . 19 9 Move 3279 | 44 429 2806 Hop . | . . . Pick Up 40 | 5 13 22 Fast Attach 17 | 5 2 10 Attach 21 | . 5 16 Detach 6 | . 1 5 Swap 22 | . 3 19 Drop 19 | . . 19 Fire 216 | . 50 166 Melee 20 | . . 20 Ram . | . . . Kick . | . . . Crush . | . . . Escape Stasis . | . . . Rewire . | . . . Trap . | . . . Miscellaneous . | . . . Route ------- -11/Scrapyard -10/Materials (discovered 6 exits: *Mat x3 / [*Min x2] / *Sub) -10/Subcaves (discovered 2 exits: *Mat / [*Rec]) History --------- Turn | Location | Event 12 | -11/Scrapyard | Discovered new exit (range 16) 53 | -11/Scrapyard | Entered Materials 176 | -10/Materials | Discovered new exit (range 12) 315 | -10/Materials | Build established: Mutant 364 | -10/Materials | Discovered new exit (range 16) 423 | -10/Materials | Discovered new exit (range 15) 453 | -10/Materials | Discovered new exit (range 6) 557 | -10/Materials | Discovered new exit (range 10) 585 | -10/Materials | Prayed at D.C.S.S. Altar Unit 635 | -10/Materials | Identified exit to Materials 635 | -10/Materials | X0-1V1 revealed exit location to -9/Materials 648 | -10/Materials | X0-1V1 foreshadows a heat wave 656 | -10/Materials | Utility slot count permanently improved by X0-1V1 (+1) 693 | -10/Materials | Entered Subcaves 735 | -10/Subcaves | Shifting Twisted Machinery released Sub. Laser 918 | -10/Subcaves | Discovered new exit (range 16) 1079 | -10/Subcaves | A swath of the cavern ceiling suddenly collapsed 1133 | -10/Subcaves | Ranged accuracy permanently improved by X0-1V1 (+9%; -90 max core) 1254 | -10/Subcaves | X0-1V1 activates XOMVISION 1435 | -10/Subcaves | Identified exit to Materials 1435 | -10/Subcaves | X0-1V1 revealed exit location to -8/Materials 1454 | -10/Subcaves | X0-1V1 mutated your Propulsion slot to Weapon slot 1465 | -10/Subcaves | X0-1V1 sent hostile S-10 Pest (x3) 1473 | -10/Subcaves | X0-1V1 sent you into danger 1480 | -10/Subcaves | X0-1V1 turns hostiles against one another 1484 | -10/Subcaves | Weapon slot count temporarily expanded by X0-1V1 (+3) 1493 | -10/Subcaves | X0-1V1 revealed exit location to -8/Materials 1574 | -10/Subcaves | X0-1V1 sent hostile S-10 Pest (x4) 1581 | -10/Subcaves | X0-1V1 mutated your Weapon slot to Power slot 1585 | -10/Subcaves | Visited 4L-MR0's lab 1591 | -10/Subcaves | X0-1V1 tapped a No Entrance sign 1605 | -10/Subcaves | Found Cargo Legs 1619 | -10/Subcaves | X0-1V1 activates XOMVISION 1642 | -10/Subcaves | X0-1V1 sent hostile S-10 Pest (x3) 1879 | -10/Subcaves | Build established: Gunner 2008 | -10/Subcaves | Lost 4 parts (2p1n1u) 2212 | -10/Subcaves | Build established: Mutant 2911 | -10/Subcaves | Shifting Twisted Machinery released Piercing Trap 3266 | -10/Subcaves | Core integrity fell below 50% 3432 | -10/Subcaves | Core integrity restored by X0-1V1 (+27) 3549 | -10/Subcaves | Build established: Scavenger-Mutant 3643 | -10/Subcaves | X0-1V1 activates XOMVISION 3665 | -10/Subcaves | Core integrity restored by X0-1V1 (+38) 3938 | -10/Subcaves | Ambushed by Subdweller buried in earth 3991 | -10/Subcaves | Build established: Mutant 4183 | -10/Subcaves | Core integrity restored by X0-1V1 (+38) 4223 | -10/Subcaves | X0-1V1 activates XOMVISION 4242 | -10/Subcaves | X0-1V1 sent hostile G-34 Mercenary (x3) 4264 | -10/Subcaves | X0-1V1 mutated your Weapon slot to Utility slot 4345 | -10/Subcaves | X0-1V1 sent hostile G-34 Mercenary (x5) 4377 | -10/Subcaves | X0-1V1 mutated your Utility slot to Weapon slot 4380 | -10/Subcaves | System corruption reached 10% 4441 | -10/Subcaves | X0-1V1 sent hostile S-10 Pest (x5) 4454 | -10/Subcaves | X0-1V1 mutated your Weapon slot to Propulsion slot 4478 | -10/Subcaves | X0-1V1 activates XOMVISION 4545 | -10/Subcaves | X0-1V1 mutated your Propulsion slot to Utility slot 4553 | -10/Subcaves | X0-1V1 sent hostile G-34 Mercenary (x4) 4559 | -10/Subcaves | Weapon slot count temporarily expanded by X0-1V1 (+2) 4572 | -10/Subcaves | X0-1V1 whisked you away to safety 4572 | -10/Subcaves | Core integrity restored by X0-1V1 (+33) 4626 | -10/Subcaves | X0-1V1 mutated your Utility slot to Weapon slot 4633 | -10/Subcaves | X0-1V1 sent hostile S-10 Pest (x4) 4650 | -10/Subcaves | X0-1V1 sent you into danger 4714 | -10/Subcaves | X0-1V1 mutated your Weapon slot to Utility slot 4719 | -10/Subcaves | X0-1V1 sent hostile G-34 Mercenary (x5) 4738 | -10/Subcaves | X0-1V1 whisked you away to safety 4741 | -10/Subcaves | Core integrity restored by X0-1V1 (+24) 4794 | -10/Subcaves | X0-1V1 sent hostile G-34 Mercenary (x3) 4858 | -10/Subcaves | Build established: Tank 5364 | -10/Subcaves | X0-1V1 sent hostile G-34 Mercenary (x3) 5370 | -10/Subcaves | Ambushed by Subdweller buried in earth 5370 | -10/Subcaves | Ambushed by Subdweller buried in earth 5395 | -10/Subcaves | Build established: Mutant 5459 | -10/Subcaves | Found Prototype Device 5459 | -10/Subcaves | Identified Sfc. Transmogrifier 5501 | -10/Subcaves | Ambushed by Subdweller buried in earth 5503 | -10/Subcaves | X0-1V1 sent allied G-34 Mercenary (x2) 5555 | -10/Subcaves | X0-1V1 rewrote G-34 Mercenary IFF filter 5598 | -10/Subcaves | Crushed by falling debris 5598 | -10/Subcaves | Core integrity fell below 20% 5632 | -10/Subcaves | Destroyed by EC-08T(R) with Subdweller Machine Gun Last Messages --------------- 05541_ Acquired 7 matter. 05548_ Acquired 27 matter. 05549_ The unstable cave ceiling collapses. 05555_ X0-1V1 rewrites G-34 Mercenary IFF filter. 05562_ G-34 Mercenary suffers critical hit (Smash). 05562_ Destroyed Heat Sink. 05562_ G-34 Mercenary system corrupted by crushing effect. 05562_ G-34 Mercenary knocked back. 05563_ G-34 Mercenary system terminally corrupted. 05564_ Sfc. Transmogrifier converts Mak. Light Armor Plating into Adv. Sensor Array. IFF burst signal emitted. 05590_ X0-1V1: "Don't be shy now." 05598_ The unstable cave ceiling collapses. 05598_ Crushed by falling debris. 05609_ Sfc. Transmogrifier converts Adv. Sensor Array into EM Disruption Field. 05627_ EC-08T(R): "ARGHSUB!" 05628_ Rnf. Ion Engine destroyed. 05632_ X0-1V1 cackles wildly! Map ----- +----------------------------------------------------+ | ## "# ###??## #????????????????????### # | | #" "" ##??#####???????????????????#### + | | "" ####???????????????????????#"########## | | " ##????????????????###???# ####???### | | " #######??????????# #???#" ""##### | | "## ##?????????# ##??##" # | | & ## # "" ##?????#### ##### "##= = | | & ! #### [" #?????# # ####" ## " | | & ##??# #????## """ ### | | # #???## # "" ##???## ## # # # & # | | # #?######## ##???# %& # & | | ## #?# #########" ####### & ### | | ## ### ## #??#" ##?# #?## | | # ###"""" % #?##=" #### # # ##??## | | ## ### " ### " ### # # # ##????# | | ?# ### "### ####### ##?????# | | ?# ## & "## #?????###??????? | | ?# ## ######## # " ###??????????????? | | ?# ### ##?????# # ######????????????????? | | ?# ### #??????## #?????????????????????? | | ?# ##???#### ## #?????????????????????? | | ?## #????# # ##?????????????????????? | | ??#########????# ##?????????????????????? | | ??????????????# ##### #?????????????????????? | | ??????????????## #???##R##?????????????????????? | | ???????????????#####????#@#??????????????????????? | | ????????????????????????# #??????????????????????? | | ?????????????????????#### #??????????????????????? | | ????????????????????## ##??????????????????????? | | ????????????????????# ##???????????????????????? | | ????????????????????## ##????????????????????????? | | ?????????????????????###?????????????????????????? | | ?????????????????????????????????????????????????? | | ?????????????????????????????????????????????????? | | ?????????????????????????????????????????????????? | | ?????????????????????????????????????????????????? | | ?????????????????????????????????????????????????? | | ?????????????????????????????????????????????????? | | ?????????????????????????????????????????????????? | | ?????????????????????????????????????????????????? | | ?????????????????????????????????????????????????? | | ?????????????????????????????????????????????????? | | ?????????????????????????????????????????????????? | | ?????????????????????????????????????????????????? | | ?????????????????????????????????????????????????? | | ?????????????????????????????????????????????????? | | ?????????????????????????????????????????????????? | | ?????????????????????????????????????????????????? | | ?????????????????????????????????????????????????? | | ?????????????????????????????????????????????????? | +----------------------------------------------------+ Best States ------------- Heat Dissipation 149 Energy Generation 43 Energy Capacity 1565 Matter Stores 584 Matter Capacity 900 Sight Range 22 Robot Scan Range 16 Terrain Scan Density 10 Armor Coverage 800 Evasion (%) 42 Item Schematics ----------------- None Robot Schematics ------------------ None Fabricated ------------ Nothing Repaired ---------- Nothing Studied --------- None Alien Tech Used ----------------- None Achievements -------------- None Challenges ------------ None Game ------ Seed WeldingLightCharge Manual? 0 Play Time 00:39:34 Cumulative 271.4 hours Start 2026.07.12 @ 00:12:37 End 2026.07.12 @ 02:03:35 Sessions 1 Manual Loads 0 Difficulty Rogue Special Mode None Game No. 127 Rogue 127 Adventurer 0 Explorer 0 Win Type - Total 16 Types 12/1/1/1/0/0/0/0/0/1 Lore% 76 Gallery% 73 Achievement% 72 Wizard Run 0 Options --------- Layout 0 ASCII 0 Keyboard 1 Movement Arrows Keybinds 0 Fullscreen 2 Font 18/SmallcapsGlow Map View 76x50 Zoom Use 0% Tactical HUD 1 Map Filters NONE Filters NONE Steam 1 RUN: cc52363f-5bae-4a03-a605-3090bbb69892